[Event "Netanya Open 2019"]
[Site "Netanya"]
[Date "2019.07.01"]
[Round "8.23"]
[White "Sivan, Yaacov"]
[Black "Guz, Ari"]
[Result "1-0"]
[ECO "B42"]
[WhiteElo "2320"]
[BlackElo "2151"]
[Annotator "NA"]
[PlyCount "81"]
[EventDate "2019.06.23"]
[EventType "swiss"]
[EventCountry "ISR"]
[SourceTitle "playchess.com"]
[Source "ChessBase"]
[SourceQuality "1"]
[TimeControl "40/5400+30:1800+30"]

1. e4 {[%emt 0:00:00]} c5 {[%emt 0:00:00]} 2. Nf3 {[%emt 0:00:00]} e6 {[%emt 0:00:00]} 3. d4 {[%emt 0:00:00]} cxd4 {[%emt 0:00:00]} 4. Nxd4 {[%emt 0:00:00]} a6 {[%emt 0:00:05]} 5. Bd3 {[%emt 0:00:09]} g6 {[%emt 0:00:17]} 6. c4 {[%emt 0:03:13]} Bg7 {[%emt 0:00:10]} 7. Be3 {[%emt 0:02:44]} Ne7 {[%emt 0:00:10]} 8. Nc3 {[%emt 0:02:23]} O-O {[%emt 0:00:12]} 9. Qb3 {[%emt 0:04:59]} Nbc6 {[%emt 0:01:54]} 10. Nxc6 {[%emt 0:01:25]} Nxc6 {[%emt 0:00:09]} 11. Qb6 {[%emt 0:24:15]} Qxb6 {[%emt 0:17:57]} 12. Bxb6 {[%emt 0:00:07]} Bd4 {[%emt 0:00:13]} 13. Na4 {[%emt 0:04:32]} d6 {[%emt 0:02:18]} 14. Rd1 {[%emt 0:09:32]} Bxb6 {[%emt 0:10:24]} 15. Nxb6 {[%emt 0:00:16]} Rb8 {[%emt 0:00:04]} 16. Bb1 {[%emt 0:10:29]} Rd8 {[%emt 0:00:29]} 17. f4 {[%emt 0:00:30]} e5 {[%emt 0:01:53]} 18. f5 {[%emt 0:00:12]} Nd4 {[%emt 0:02:01]} 19. O-O {[%emt 0:00:41]} Bd7 {[%emt 0:01:24]} 20. Rf2 {[%emt 0:02:13]} gxf5 {[%emt 0:12:57]} 21. exf5 {[%emt 0:00:08]} Bc6 {[%emt 0:01:30]} 22. f6 {[%emt 0:03:10]} d5 {[%emt 0:05:51]} 23. Re1 {[%emt 0:01:47]} dxc4 {[%emt 0:01:34]} 24. Nxc4 {[%emt 0:02:08]} Bb5 {[%emt 0:00:21]} 25. b3 {[%emt 0:10:55]} Bxc4 {[%emt 0:00:48]} 26. bxc4 {[%emt 0:00:02]} Ne6 {[%emt 0:03:56]} 27. Rf5 {[%emt 0:04:17]} Rbc8 {[%emt 0:02:14]} 28. Rh5 {[%emt 0:02:04]} Nf8 {[%emt 0:00:26]} 29. Rg5+ {[%emt 0:00:18]} Kh8 {[%emt 0:01:28]} 30. Rg7 {[%emt 0:01:12]} Rxc4 {[%emt 0:03:57]} 31. Rxf7 {[%emt 0:00:23]} b5 {[%emt 0:00:44]} 32. h3 {[%emt 0:00:20]} Rcd4 {[%emt 0:01:03]} 33. Kh2 {[%emt 0:00:23]} R4d7 {[%emt 0:01:34]} 34. Re7 {[%emt 0:02:38]} Rd6 {[%emt 0:02:46]} 35. Rf1 {[%emt 0:00:31]} Ng6 {[%emt 0:03:47]} 36. Rg7 {[%emt 0:08:02]} Rg8 {[%emt 0:00:41]} 37. Rf7 {[%emt 0:00:13]} Nf8 {[%emt 0:03:48]} 38. Rf5 {[%emt 0:01:29]} Rd7 {[%emt 0:05:05]} 39. Re7 {[%emt 0:00:53]} Rd2 {[%emt 0:04:55]} 40. Be4 {[%emt 0:00:12]} Ng6 {[%emt 0:00:25]} 41. Rxh7+ {[%emt 0:30:19]} 1-0

[Event "Netanya Open 2019"]
[Site "Netanya"]
[Date "2019.07.01"]
[Round "8.24"]
[White "Parligras, Cosmin"]
[Black "Goikhman, Valentin"]
[Result "1-0"]
[ECO "B51"]
[WhiteElo "2198"]
[BlackElo "2320"]
[Annotator "NA"]
[PlyCount "113"]
[EventDate "2019.06.23"]
[EventType "swiss"]
[EventCountry "ISR"]
[SourceTitle "playchess.com"]
[Source "ChessBase"]
[SourceQuality "1"]
[TimeControl "40/5400+30:1800+30"]

1. e4 {[%emt 0:00:00]} c5 {[%emt 0:00:00]} 2. Nf3 {[%emt 0:00:00]} d6 {[%emt 0:00:00]} 3. Bb5+ {[%emt 0:00:00]} Nc6 {[%emt 0:00:40]} 4. O-O {[%emt 0:00:17]} Nf6 {[%emt 0:01:26]} 5. e5 {[%emt 0:00:14]} dxe5 {[%emt 0:01:21]} 6. Bxc6+ {[%emt 0:01:14]} bxc6 {[%emt 0:00:06]} 7. Nxe5 {[%emt 0:00:03]} Nd7 {[%emt 0:15:29]} 8. Nxd7 {[%emt 0:03:02]} Qxd7 {[%emt 0:04:50]} 9. d3 {[%emt 0:00:26]} g6 {[%emt 0:01:45]} 10. Nd2 {[%emt 0:11:47]} Bg7 {[%emt 0:00:50]} 11. Rb1 {[%emt 0:00:21]} O-O {[%emt 0:04:32]} 12. b3 {[%emt 0:00:14]} Re8 {[%emt 0:11:47]} 13. Qe2 {[%emt 0:00:49]} f5 {[%emt 0:04:12]} 14. Bb2 {[%emt 0:08:43]} Bxb2 {[%emt 0:08:16]} 15. Rxb2 {[%emt 0:00:08]} Qd4 {[%emt 0:04:52]} 16. Rbb1 {[%emt 0:01:45]} e5 {[%emt 0:02:19]} 17. Rfe1 {[%emt 0:07:13]} Ba6 {[%emt 0:13:40]} 18. Nf3 {[%emt 0:04:14]} Qc3 {[%emt 0:03:27]} 19. Nxe5 {[%emt 0:23:41]} f4 {[%emt 0:05:29]} 20. g3 {[%emt 0:03:24]} Re6 {[%emt 0:06:09]} 21. gxf4 {[%emt 0:32:55]} Rf8 {[%emt 0:09:20]} 22. Qg4 {[%emt 0:00:00]} Bc8 {[%emt 0:00:00]} 23. Qg3 {[%emt 0:00:00]} Qxc2 {[%emt 0:00:00]} 24. Rbc1 {[%emt 0:00:00]} Qd2 {[%emt 0:00:00]} 25. Qe3 {[%emt 0:00:00]} Qxa2 {[%emt 0:00:00]} 26. Qxc5 {[%emt 0:00:00]} Qd2 {[%emt 0:01:34]} 27. Qe3 {[%emt 0:00:00]} Qb4 {[%emt 0:00:40]} 28. Rxc6 {[%emt 0:00:00]} Qxb3 {[%emt 0:00:39]} 29. Qxa7 {[%emt 0:00:00]} Qb4 {[%emt 0:00:32]} 30. Qe3 {[%emt 0:00:00]} Rxc6 {[%emt 0:00:30]} 31. Nxc6 {[%emt 0:00:00]} Qd6 {[%emt 0:00:29]} 32. Ne7+ {[%emt 0:00:00]} Kf7 {[%emt 0:00:25]} 33. Nxc8 {[%emt 0:00:00]} Rxc8 {[%emt 0:00:04]} 34. Qh3 {[%emt 0:00:00]} Rh8 {[%emt 0:00:54]} 35. Re4 {[%emt 0:00:00]} Kg7 {[%emt 0:00:40]} 36. Ra4 {[%emt 0:00:00]} Re8 {[%emt 0:00:30]} 37. Ra7+ {[%emt 0:08:00]} Re7 {[%emt 0:00:21]} 38. Rxe7+ {[%emt 0:00:00]} Qxe7 {[%emt 0:01:12]} 39. Qe3 {[%emt 0:01:00]} Qh4 {[%emt 0:00:00]} 40. Qe5+ {[%emt 0:00:00]} Kf7 {[%emt 0:00:01]} 41. Qg5 {[%emt 0:24:20]} Qh3 {[%emt 0:30:07]} 42. Qd5+ {[%emt 0:07:10]} Kg7 {[%emt 0:01:52]} 43. Qe5+ {[%emt 0:00:00]} Kf7 {[%emt 0:00:00]} 44. Qe3 {[%emt 0:01:00]} Qg4+ {[%emt 0:00:00]} 45. Qg3 {[%emt 0:00:00]} Qd1+ {[%emt 0:00:24]} 46. Kg2 {[%emt 0:00:00]} h5 {[%emt 0:00:48]} 47. h3 {[%emt 0:00:00]} Qb3 {[%emt 0:00:30]} 48. Qf3 {[%emt 0:00:00]} Kf6 {[%emt 0:00:34]} 49. Qe4 {[%emt 0:00:00]} Qc2 {[%emt 0:00:33]} 50. Qd4+ {[%emt 0:00:00]} Ke7 {[%emt 0:00:23]} 51. Qg7+ {[%emt 0:00:00]} Kd8 {[%emt 0:00:09]} 52. Qxg6 {[%emt 0:00:00]} h4 {[%emt 0:00:10]} 53. Qe4 {[%emt 0:00:00]} Qd2 {[%emt 0:00:46]} 54. d4 {[%emt 0:00:00]} Qa2 {[%emt 0:00:20]} 55. d5 {[%emt 0:00:00]} Qb2 {[%emt 0:00:09]} 56. Qe5 {[%emt 0:00:00]} Qb1 {[%emt 0:00:24]} 57. d6 {[%emt 0:01:22]} 1-0

[Event "Netanya Open 2019"]
[Site "Netanya"]
[Date "2019.07.01"]
[Round "8.25"]
[White "Rozen, Eytan"]
[Black "Aizenberg, Benny"]
[Result "1-0"]
[ECO "D32"]
[WhiteElo "2317"]
[BlackElo "2156"]
[Annotator "NA"]
[PlyCount "111"]
[EventDate "2019.06.23"]
[EventType "swiss"]
[EventCountry "ISR"]
[SourceTitle "playchess.com"]
[Source "ChessBase"]
[SourceQuality "1"]
[TimeControl "40/5400+30:1800+30"]

1. d4 {[%emt 0:00:00]} d5 {[%emt 0:00:00]} 2. c4 {[%emt 0:00:03]} e6 {[%emt 0:00:00]} 3. Nf3 {[%emt 0:00:06]} c5 {[%emt 0:00:00]} 4. cxd5 {[%emt 0:00:36]} exd5 {[%emt 0:00:00]} 5. Nc3 {[%emt 0:00:13]} Nc6 {[%emt 0:00:00]} 6. e3 {[%emt 0:00:04]} Nf6 {[%emt 0:00:00]} 7. Bb5 {[%emt 0:01:15]} Bg4 {[%emt 0:02:01]} 8. O-O {[%emt 0:00:27]} Bd6 {[%emt 0:01:25]} 9. dxc5 {[%emt 0:02:10]} Bxc5 {[%emt 0:00:06]} 10. h3 {[%emt 0:02:49]} Bh5 {[%emt 0:01:53]} 11. g4 {[%emt 0:04:13]} Bg6 {[%emt 0:00:54]} 12. g5 {[%emt 0:04:28]} Ne4 {[%emt 0:01:26]} 13. Qxd5 {[%emt 0:02:52]} Qxd5 {[%emt 0:01:28]} 14. Nxd5 {[%emt 0:00:02]} O-O {[%emt 0:00:02]} 15. Nf4 {[%emt 0:02:38]} Rad8 {[%emt 0:06:58]} 16. b3 {[%emt 0:03:17]} Be7 {[%emt 0:01:46]} 17. h4 {[%emt 0:04:20]} h6 {[%emt 0:04:54]} 18. Bxc6 {[%emt 0:10:09]} bxc6 {[%emt 0:00:04]} 19. Ne5 {[%emt 0:02:48]} hxg5 {[%emt 0:05:15]} 20. Nfxg6 {[%emt 0:11:30]} fxg6 {[%emt 0:00:18]} 21. Nxc6 {[%emt 0:03:23]} Bf6 {[%emt 0:02:04]} 22. Nxd8 {[%emt 0:01:17]} Rxd8 {[%emt 0:01:20]} 23. Rb1 {[%emt 0:01:14]} gxh4 {[%emt 0:00:43]} 24. Bb2 {[%emt 0:01:11]} Rd2 {[%emt 0:00:16]} 25. Bxf6 {[%emt 0:00:48]} Nxf6 {[%emt 0:01:29]} 26. a4 {[%emt 0:01:25]} Ng4 {[%emt 0:01:08]} 27. Rfd1 {[%emt 0:01:42]} Ra2 {[%emt 0:00:41]} 28. Rd8+ {[%emt 0:01:18]} Kf7 {[%emt 0:00:23]} 29. Rd7+ {[%emt 0:02:11]} Kf6 {[%emt 0:00:48]} 30. Rxa7 {[%emt 0:04:30]} h3 {[%emt 0:00:43]} 31. Rf1 {[%emt 0:02:08]} Kg5 {[%emt 0:00:13]} 32. Rxg7 {[%emt 0:01:08]} Rb2 {[%emt 0:00:56]} 33. Rh7 {[%emt 0:03:05]} h2+ {[%emt 0:01:57]} 34. Rxh2 {[%emt 0:00:36]} Nxh2 {[%emt 0:00:05]} 35. Kxh2 {[%emt 0:00:13]} Rxb3 {[%emt 0:00:04]} 36. Ra1 {[%emt 0:00:13]} Kg4 {[%emt 0:01:36]} 37. a5 {[%emt 0:00:26]} Kf3 {[%emt 0:00:04]} 38. a6 {[%emt 0:00:42]} Rb8 {[%emt 0:00:38]} 39. a7 {[%emt 0:00:13]} Ra8 {[%emt 0:00:03]} 40. Kg1 {[%emt 0:00:57]} g5 {[%emt 0:00:07]} 41. Ra2 {[%emt 0:32:06]} g4 {[%emt 0:30:47]} 42. Ra3 {[%emt 0:00:35]} g3 {[%emt 0:00:20]} 43. e4+ {[%emt 0:00:10]} Kxe4 {[%emt 0:00:04]} 44. fxg3 {[%emt 0:00:07]} Kf5 {[%emt 0:00:22]} 45. Ra4 {[%emt 0:00:06]} Kg5 {[%emt 0:00:10]} 46. Kg2 {[%emt 0:00:28]} Kf5 {[%emt 0:00:05]} 47. g4+ {[%emt 0:00:08]} Ke5 {[%emt 0:00:03]} 48. Kg3 {[%emt 0:00:14]} Ke6 {[%emt 0:00:44]} 49. Ra5 {[%emt 0:00:06]} Kf6 {[%emt 0:00:09]} 50. g5+ {[%emt 0:00:04]} Ke6 {[%emt 0:00:04]} 51. Kg4 {[%emt 0:00:05]} Kd6 {[%emt 0:00:33]} 52. g6 {[%emt 0:00:10]} Ke6 {[%emt 0:00:04]} 53. Kg5 {[%emt 0:00:06]} Ke7 {[%emt 0:00:09]} 54. Ra6 {[%emt 0:00:06]} Ke8 {[%emt 0:00:05]} 55. Kf6 {[%emt 0:00:09]} Kf8 {[%emt 0:00:06]} 56. Rb6 {[%emt 0:00:08]} 1-0

[Event "Netanya Open 2019"]
[Site "Netanya"]
[Date "2019.07.01"]
[Round "8.26"]
[White "Aharon, Ofir"]
[Black "Hoffmann, Yair"]
[Result "1-0"]
[ECO "B12"]
[WhiteElo "2302"]
[BlackElo "2140"]
[Annotator "NA"]
[PlyCount "53"]
[EventDate "2019.06.23"]
[EventType "swiss"]
[EventCountry "ISR"]
[SourceTitle "playchess.com"]
[Source "ChessBase"]
[SourceQuality "1"]
[TimeControl "40/5400+30:1800+30"]

1. e4 {[%emt 0:00:00]} c6 {[%emt 0:00:00]} 2. d4 {[%emt 0:00:00]} d5 {[%emt 0:00:00]} 3. e5 {[%emt 0:00:22]} Bf5 {[%emt 0:00:00]} 4. g4 {[%emt 0:00:17]} Bd7 {[%emt 0:00:29]} 5. Nc3 {[%emt 0:00:13]} e6 {[%emt 0:02:02]} 6. Be3 {[%emt 0:00:59]} Qc7 {[%emt 0:08:03]} 7. f4 {[%emt 0:01:19]} h5 {[%emt 0:02:32]} 8. gxh5 {[%emt 0:02:22]} Nh6 {[%emt 0:01:15]} 9. Bh3 {[%emt 0:02:31]} c5 {[%emt 0:07:46]} 10. Nf3 {[%emt 0:02:05]} cxd4 {[%emt 0:01:46]} 11. Nxd4 {[%emt 0:00:19]} Bb4 {[%emt 0:01:38]} 12. Bd2 {[%emt 0:14:50]} Na6 {[%emt 0:13:27]} 13. a3 {[%emt 0:06:48]} Bxc3 {[%emt 0:09:14]} 14. Bxc3 {[%emt 0:01:04]} Nc5 {[%emt 0:00:11]} 15. O-O {[%emt 0:14:22]} Na4 {[%emt 0:07:21]} 16. Rf3 {[%emt 0:02:47]} Rc8 {[%emt 0:05:32]} 17. Qd2 {[%emt 0:11:36]} Qb6 {[%emt 0:06:50]} 18. Rg3 {[%emt 0:05:56]} O-O {[%emt 0:06:29]} 19. Kh1 {[%emt 0:03:24]} Nxc3 {[%emt 0:07:40]} 20. bxc3 {[%emt 0:00:22]} Kh8 {[%emt 0:00:04]} 21. Rag1 {[%emt 0:00:59]} Rg8 {[%emt 0:00:05]} 22. f5 {[%emt 0:07:53]} Nxf5 {[%emt 0:16:30]} 23. Bxf5 {[%emt 0:01:05]} exf5 {[%emt 0:00:04]} 24. e6 {[%emt 0:02:12]} fxe6 {[%emt 0:00:05]} 25. Rxg7 {[%emt 0:02:55]} e5 {[%emt 0:00:51]} 26. Qg5 {[%emt 0:00:24]} Rgd8 {[%emt 0:02:31]} 27. Rh7+ {[%emt 0:00:07]} 1-0

[Event "Netanya Open 2019"]
[Site "Netanya"]
[Date "2019.07.01"]
[Round "8.27"]
[White "Itzhaky, Shmuel"]
[Black "Friedland, Moshe"]
[Result "1/2-1/2"]
[ECO "D15"]
[WhiteElo "2130"]
[BlackElo "2298"]
[Annotator "NA"]
[PlyCount "74"]
[EventDate "2019.06.23"]
[EventType "swiss"]
[EventCountry "ISR"]
[SourceTitle "playchess.com"]
[Source "ChessBase"]
[SourceQuality "1"]
[TimeControl "40/5400+30:1800+30"]

1. e3 {[%emt 0:00:00]} Nf6 {[%emt 0:01:09]} 2. Nf3 {[%emt 0:01:12]} d5 {[%emt 0:01:40]} 3. c4 {[%emt 0:01:30]} c6 {[%emt 0:00:07]} 4. Nc3 {[%emt 0:00:39]} a6 {[%emt 0:00:44]} 5. d4 {[%emt 0:00:52]} Bf5 {[%emt 0:04:55]} 6. Nh4 {[%emt 0:07:08]} Bg4 {[%emt 0:05:32]} 7. f3 {[%emt 0:00:58]} Bc8 {[%emt 0:01:32]} 8. f4 {[%emt 0:05:55]} e6 {[%emt 0:09:03]} 9. Nf3 {[%emt 0:07:29]} dxc4 {[%emt 0:07:02]} 10. Bxc4 {[%emt 0:00:41]} b5 {[%emt 0:00:10]} 11. Be2 {[%emt 0:01:14]} c5 {[%emt 0:02:58]} 12. O-O {[%emt 0:02:27]} Bb7 {[%emt 0:04:44]} 13. Ne5 {[%emt 0:08:30]} cxd4 {[%emt 0:12:25]} 14. Bf3 {[%emt 0:08:56]} Ra7 {[%emt 0:05:42]} 15. exd4 {[%emt 0:03:51]} Be7 {[%emt 0:03:15]} 16. f5 {[%emt 0:08:31]} O-O {[%emt 0:05:41]} 17. Bxb7 {[%emt 0:05:06]} Rxb7 {[%emt 0:00:02]} 18. Qf3 {[%emt 0:00:30]} Qxd4+ {[%emt 0:03:25]} 19. Kh1 {[%emt 0:00:19]} Nd5 {[%emt 0:03:24]} 20. Ng4 {[%emt 0:08:29]} Rd7 {[%emt 0:06:21]} 21. Rd1 {[%emt 0:04:26]} Qc5 {[%emt 0:02:02]} 22. Ne4 {[%emt 0:02:27]} Qc2 {[%emt 0:01:08]} 23. Rd2 {[%emt 0:07:00]} Qa4 {[%emt 0:08:09]} 24. b3 {[%emt 0:01:18]} Qa5 {[%emt 0:01:05]} 25. f6 {[%emt 0:00:44]} gxf6 {[%emt 0:02:13]} 26. Ngxf6+ {[%emt 0:02:25]} Nxf6 {[%emt 0:00:28]} 27. Nxf6+ {[%emt 0:00:09]} Bxf6 {[%emt 0:00:23]} 28. Qxf6 {[%emt 0:00:14]} Qd8 {[%emt 0:00:59]} 29. Qf4 {[%emt 0:01:49]} f6 {[%emt 0:02:15]} 30. Rxd7 {[%emt 0:02:41]} Qxd7 {[%emt 0:00:04]} 31. Ba3 {[%emt 0:03:36]} Rd8 {[%emt 0:00:49]} 32. Rf1 {[%emt 0:01:05]} Qg7 {[%emt 0:02:17]} 33. h3 {[%emt 0:01:46]} Nc6 {[%emt 0:03:03]} 34. Kh2 {[%emt 0:02:25]} Rd4 {[%emt 0:01:27]} 35. Qxf6 {[%emt 0:00:33]} Qxf6 {[%emt 0:00:31]} 36. Rxf6 {[%emt 0:00:01]} Rd2 {[%emt 0:00:09]} 37. Rxe6 {[%emt 0:00:43]} Nd4 {[%emt 0:01:00]} 1/2-1/2

[Event "Netanya Open 2019"]
[Site "Netanya"]
[Date "2019.07.01"]
[Round "8.28"]
[White "Poleg, Dan"]
[Black "Yaniv, Yuval"]
[Result "0-1"]
[ECO "A48"]
[WhiteElo "2271"]
[BlackElo "2120"]
[Annotator "NA"]
[PlyCount "100"]
[EventDate "2019.06.23"]
[EventType "swiss"]
[EventCountry "ISR"]
[SourceTitle "playchess.com"]
[Source "ChessBase"]
[SourceQuality "1"]
[TimeControl "40/5400+30:1800+30"]

1. d4 {[%emt 0:00:00]} Nf6 {[%emt 0:00:00]} 2. Nf3 {[%emt 0:00:00]} g6 {[%emt 0:00:00]} 3. Nbd2 {[%emt 0:00:00]} c5 {[%emt 0:01:40]} 4. dxc5 {[%emt 0:00:25]} Qa5 {[%emt 0:00:12]} 5. c3 {[%emt 0:11:19]} Qxc5 {[%emt 0:00:15]} 6. e4 {[%emt 0:00:14]} d6 {[%emt 0:02:33]} 7. Qc2 {[%emt 0:03:01]} Bg7 {[%emt 0:01:50]} 8. Bd3 {[%emt 0:00:35]} O-O {[%emt 0:02:43]} 9. Nb3 {[%emt 0:00:13]} Qc7 {[%emt 0:01:50]} 10. O-O {[%emt 0:02:23]} Nbd7 {[%emt 0:02:59]} 11. h3 {[%emt 0:07:25]} a6 {[%emt 0:01:49]} 12. a4 {[%emt 0:03:29]} b6 {[%emt 0:01:16]} 13. Bf4 {[%emt 0:01:44]} Bb7 {[%emt 0:02:29]} 14. Qe2 {[%emt 0:03:16]} Ne5 {[%emt 0:05:57]} 15. Nbd2 {[%emt 0:08:48]} Nxd3 {[%emt 0:03:52]} 16. Qxd3 {[%emt 0:00:04]} Nd7 {[%emt 0:00:41]} 17. Rfc1 {[%emt 0:00:04]} Nc5 {[%emt 0:08:32]} 18. Qe3 {[%emt 0:02:44]} Qc6 {[%emt 0:02:44]} 19. Bh6 {[%emt 0:08:17]} e5 {[%emt 0:08:48]} 20. Bxg7 {[%emt 0:04:53]} Kxg7 {[%emt 0:01:03]} 21. Nd4 {[%emt 0:07:47]} Qd7 {[%emt 0:09:44]} 22. b4 {[%emt 0:00:07]} Nxa4 {[%emt 0:01:22]} 23. Nf5+ {[%emt 0:00:25]} Kh8 {[%emt 0:10:25]} 24. Nxd6 {[%emt 0:03:15]} Qxd6 {[%emt 0:00:14]} 25. Rxa4 {[%emt 0:00:05]} Qc6 {[%emt 0:00:46]} 26. Raa1 {[%emt 0:00:16]} Rfd8 {[%emt 0:01:36]} 27. Rd1 {[%emt 0:08:19]} Rd6 {[%emt 0:02:54]} 28. Nf3 {[%emt 0:01:32]} f6 {[%emt 0:01:47]} 29. Rxd6 {[%emt 0:00:29]} Qxd6 {[%emt 0:00:01]} 30. Ra2 {[%emt 0:00:07]} Rd8 {[%emt 0:06:25]} 31. h4 {[%emt 0:08:45]} Qc6 {[%emt 0:02:46]} 32. Rd2 {[%emt 0:00:26]} Rxd2 {[%emt 0:01:06]} 33. Nxd2 {[%emt 0:01:24]} Kg7 {[%emt 0:00:58]} 34. c4 {[%emt 0:03:21]} a5 {[%emt 0:03:53]} 35. b5 {[%emt 0:03:58]} Qd6 {[%emt 0:00:04]} 36. c5 {[%emt 0:00:21]} Qxc5 {[%emt 0:02:55]} 37. Qxc5 {[%emt 0:00:10]} bxc5 {[%emt 0:00:01]} 38. Nb3 {[%emt 0:00:07]} a4 {[%emt 0:01:04]} 39. Nxc5 {[%emt 0:01:21]} a3 {[%emt 0:00:11]} 40. f3 {[%emt 0:01:32]} a2 {[%emt 0:04:56]} 41. Nb3 {[%emt 0:31:18]} f5 {[%emt 0:33:27]} 42. exf5 {[%emt 0:02:33]} gxf5 {[%emt 0:00:01]} 43. Kf2 {[%emt 0:00:06]} Bd5 {[%emt 0:00:15]} 44. b6 {[%emt 0:00:23]} Bxb3 {[%emt 0:00:22]} 45. b7 {[%emt 0:00:02]} a1=Q {[%emt 0:00:09]} 46. b8=Q {[%emt 0:00:06]} Qd4+ {[%emt 0:00:48]} 47. Kg3 {[%emt 0:00:17]} Bf7 {[%emt 0:02:43]} 48. Qc8 {[%emt 0:00:30]} f4+ {[%emt 0:00:00]} 49. Kh2 {[%emt 0:00:00]} Qd6 {[%emt 0:00:00]} 50. Qf5 {[%emt 0:00:00]} Qf6 {[%emt 0:00:00]} 0-1

[Event "Netanya Open 2019"]
[Site "Netanya"]
[Date "2019.07.01"]
[Round "8.29"]
[White "Slobodiansky, Steven"]
[Black "Tzidkiya, Yeshaayahu"]
[Result "0-1"]
[WhiteElo "2088"]
[BlackElo "2247"]
[PlyCount "52"]
[EventDate "2019.06.23"]
[EventType "swiss"]
[EventRounds "9"]
[EventCountry "ISR"]
[TimeControl "40/5400+30:1800+30"]

1. e4 c5 2. Nf3 Nc6 3. d4 cxd4 4. Nxd4 g6 5. Nc3 Bg7 6. Be3 Nf6 7. Bc4 O-O 8. Bb3 d6 9. f3 Bd7 10. Qd2 Rc8 11. O-O-O Nxd4 12. Bxd4 b5 13. a3 a5 14. Nd5 Nxd5 15. Bxg7 Kxg7 16. exd5 Kg8 17. g4 b4 18. axb4 axb4 19. h4 Qa5 20. Qd4 e5 21. dxe6 Bxe6 22. Bxe6 fxe6 23. b3 Rxf3 24. Qb2 Rf2 25. Rhe1 Rcxc2+ 26. Qxc2 Qa1+ 0-1

[Event "Netanya Open 2019"]
[Site "Netanya"]
[Date "2019.07.01"]
[Round "8.30"]
[White "Prraneeth Vuppala"]
[Black "Neiman, Maks"]
[Result "1-0"]
[WhiteElo "2297"]
[BlackElo "1954"]
[PlyCount "149"]
[EventDate "2019.06.23"]
[EventType "swiss"]
[EventRounds "9"]
[EventCountry "ISR"]
[TimeControl "40/5400+30:1800+30"]

1. d4 Nf6 2. c4 e6 3. g3 c5 4. d5 exd5 5. cxd5 d6 6. Nc3 g6 7. Bg2 Bg7 8. Nf3 O-O 9. O-O Re8 10. Bf4 a6 11. a4 Nh5 12. Bg5 Qc7 13. Nd2 h6 14. Be3 Nd7 15. Nc4 Ne5 16. Nxe5 Rxe5 17. Bd2 Nf6 18. e4 Rb8 19. a5 Bd7 20. Re1 Ree8 21. Na4 Bb5 22. Rc1 Nd7 23. b4 c4 24. Bf1 Rbc8 25. Bc3 Qd8 26. Bxg7 Kxg7 27. Nc3 Qf6 28. f4 g5 29. Bh3 Rcd8 30. Bf5 Nf8 31. fxg5 hxg5 32. Rf1 Qh6 33. Nxb5 axb5 34. Qg4 Ng6 35. Bxg6 Qxg6 36. Rf5 f6 37. Rcf1 Rf8 38. h4 gxh4 39. Qxh4 Rf7 40. Qf4 Rff8 41. Qf3 Rde8 42. Kg2 Qh6 43. Rf4 Re5 44. Rh1 Qg6 45. Rf5 Rfe8 46. Rh4 Kf7 47. Rxf6+ Qxf6 48. Rh7+ Kg6 49. Rh6+ Kxh6 50. Qxf6+ Kh7 51. Qf7+ Kh6 52. Qxb7 Rxe4 53. Qc7 Kg5 54. Qg7+ Kf5 55. a6 Re2+ 56. Kh3 R2e7 57. Qg4+ Ke5 58. a7 Kxd5 59. Qf3+ Re4 60. Qf5+ R4e5 61. Qd7 Kd4 62. Qxd6+ Kc3 63. Qxe5+ Rxe5 64. a8=Q Kxb4 65. Qa2 c3 66. g4 Re3+ 67. Kh4 Rd3 68. g5 Rd2 69. Qb1+ Kc4 70. g6 c2 71. Qf1+ Kc3 72. g7 Rd1 73. Qf3+ Kd2 74. g8=Q c1=Q 75. Qgg2+ 1-0

[Event "Netanya Open 2019"]
[Site "Netanya"]
[Date "2019.07.01"]
[Round "8.31"]
[White "Aroesti, Roee"]
[Black "Tsirilman, Guy"]
[Result "1/2-1/2"]
[ECO "B94"]
[WhiteElo "2230"]
[BlackElo "1798"]
[PlyCount "76"]
[EventDate "2019.06.23"]
[EventType "swiss"]
[EventRounds "9"]
[EventCountry "ISR"]
[TimeControl "40/5400+30:1800+30"]

{[%evp 0,22,19,38,40,41,66,66,57,33,33,27,50,61,63,-3,53,10,8,8,27,31,36,21,16]} 1. e4 c5 2. Nf3 d6 3. d4 cxd4 4. Nxd4 Nf6 5. Nc3 a6 6. Bg5 Nbd7 7. f4 Qc7 8. Qf3 h6 9. Bh4 g5 10. fxg5 hxg5 11. Bxg5 Qc5 12. Be3 Ne5 13. Qe2 Neg4 14. Bg1 Bh6 15. h3 Bf4 16. Qf3 Qg5 17. g3 Bd2+ 18. Kd1 Ne5 19. Qg2 Be3 20. h4 Qh6 21. Be2 Bxg1 22. Qxg1 Bg4 23. Nf5 Bxf5 24. exf5 Neg4 25. Bxg4 Nxg4 26. Nd5 Rc8 27. Qd4 Ne5 28. Ne3 Rg8 29. g4 Rc5 30. c3 Nxg4 31. Nxg4 Rxg4 32. Qxg4 Rd5+ 33. Ke2 Qd2+ 34. Kf1 Qd3+ 35. Kg2 Qd2+ 36. Kf1 Qd3+ 37. Kg2 Qd2+ 38. Kf1 Qd3+ 1/2-1/2

[Event "Netanya Open 2019"]
[Site "Netanya"]
[Date "2019.07.01"]
[Round "8.32"]
[White "Mindlin, Alon"]
[Black "Zalkind, Konstantin"]
[Result "1/2-1/2"]
[WhiteElo "2454"]
[BlackElo "2116"]
[PlyCount "128"]
[EventDate "2019.06.23"]
[EventType "swiss"]
[EventRounds "9"]
[EventCountry "ISR"]
[TimeControl "40/5400+30:1800+30"]

1. d4 g6 2. c4 Bg7 3. e4 Nc6 4. Ne2 d6 5. Be3 Nf6 6. f3 a6 7. Nbc3 Rb8 8. Rc1 Bd7 9. d5 Na5 10. Ng3 c5 11. Qd2 b5 12. cxb5 axb5 13. b3 b4 14. Nd1 e6 15. dxe6 Bxe6 16. Be2 O-O 17. O-O Re8 18. Nb2 d5 19. e5 Nd7 20. f4 Qe7 21. f5 Bxf5 22. Nxf5 gxf5 23. Rxf5 Bxe5 24. Bh5 Bc3 25. Bxf7+ Qxf7 26. Qf2 Qe6 27. Rf3 Rf8 28. Rg3+ Kh8 29. Qe2 d4 30. Rxc3 Rbe8 31. Rxc5 dxe3 32. Rxa5 Nf6 33. Nc4 Qe4 34. h3 Qd4 35. Rf5 Ne4 36. Rxf8+ Rxf8 37. Rxe3 Nc3 38. Qh5 Qf4 39. Qe5+ Qxe5 40. Nxe5 Nxa2 41. Re4 Rb8 42. Rc4 Kg7 43. Rc7+ Kh6 44. h4 Re8 45. Ng4+ Kg6 46. h5+ Kf5 47. Rg7 Nc1 48. Nh6+ Kf6 49. Rb7 Nxb3 50. Rxb4 Nc5 51. Rb5 Ne6 52. g4 Rc8 53. g5+ Kg7 54. Nf5+ Kf8 55. Nd6 Rc5 56. Rxc5 Nxc5 57. Kh2 Ne6 58. Ne4 Kg7 59. Kg3 h6 60. g6 Nf8 61. Nd6 Nxg6 62. Nf5+ Kh7 63. hxg6+ Kxg6 64. Nxh6 Kxh6 1/2-1/2

[Event "Netanya Open 2019"]
[Site "Netanya"]
[Date "2019.07.01"]
[Round "8.33"]
[White "Shvayger, Yuliya"]
[Black "Nissim, Jonathan"]
[Result "0-1"]
[WhiteElo "2373"]
[BlackElo "2082"]
[PlyCount "80"]
[EventDate "2019.06.23"]
[EventType "swiss"]
[EventRounds "9"]
[EventCountry "ISR"]
[TimeControl "40/5400+30:1800+30"]

1. e4 c5 2. Nf3 g6 3. d4 cxd4 4. Nxd4 Bg7 5. Nc3 Nc6 6. Be3 Nf6 7. Bc4 O-O 8. Bb3 d6 9. f3 Bd7 10. Qd2 Rc8 11. Nxc6 Bxc6 12. O-O Nd7 13. Rad1 Nc5 14. Bd4 a5 15. Bxg7 Kxg7 16. Qd4+ Kg8 17. e5 Nxb3 18. axb3 dxe5 19. Qxe5 Qb6+ 20. Kh1 Qc7 21. Rfe1 Rfe8 22. Rd4 Qxe5 23. Rxe5 b6 24. Rc4 e6 25. b4 b5 26. Rf4 f6 27. Rxf6 axb4 28. Ne2 Bd5 29. Nd4 b3 30. c3 b4 31. c4 Rxc4 32. Ne2 Rc2 33. h4 Rf8 34. Rf4 Rxf4 35. Nxf4 Rxb2 36. Nxd5 exd5 37. Re8+ Kf7 38. Rb8 Rc2 39. Rxb4 b2 40. Kh2 d4 0-1

[Event "Netanya Open 2019"]
[Site "Netanya"]
[Date "2019.07.01"]
[Round "8.34"]
[White "Zhimalov, Adam"]
[Black "Iliaguev, Nisim"]
[Result "0-1"]
[WhiteElo "2044"]
[BlackElo "2375"]
[PlyCount "52"]
[EventDate "2019.06.23"]
[EventType "swiss"]
[EventRounds "9"]
[EventCountry "ISR"]
[TimeControl "40/5400+30:1800+30"]

1. d4 Nf6 2. c4 c5 3. d5 e6 4. Nc3 exd5 5. cxd5 d6 6. Nf3 g6 7. Bf4 Bg7 8. Qa4+ Bd7 9. Qb3 b5 10. Bxd6 Qb6 11. Be5 O-O 12. e3 c4 13. Qd1 Na6 14. Qd4 Nb4 15. O-O-O Rfe8 16. a3 Na6 17. Qxb6 axb6 18. Bd4 Nc5 19. Bxc5 bxc5 20. Rd2 b4 21. Nb1 Ne4 22. Bxc4 Nxd2 23. Nfxd2 bxa3 24. Nxa3 Reb8 25. Nb3 Rb4 26. Kc2 Rxa3 0-1